bitfinex-derivatives/quotes_ETHF0:USTF0_20241026
["timestamp","ask_amount","ask_price","bid_price","bid_amount"]
[1729974018806,1.123,2502.3,2501.9,3.2078]
[1729974019107,4.4749639,2502.0,2501.9,3.2078]
[1729974021195,0.40006,2502.8,2502.2,0.40013]
[1729974021408,0.9999,2503.4,2502.2,0.40013]
[1729974021409,4.4749639,2502.5,2502.4,3.2078]
[1729974022302,4.4749639,2502.5,2502.4,16.9078]
[1729974023306,4.8750539,2502.5,2502.4,16.9078]
[1729974023994,4.4749639,2502.5,2502.4,16.9078]
[1729974024404,4.8750539,2502.5,2502.4,16.9078]
[1729974024600,4.8750539,2502.5,2502.4,13.7]
[1729974024795,0.40016,2502.2,2501.8,2.81694884]
[1729974025000,4.4749639,2501.9,2501.7,3.2078]
[1729974025202,4.4749639,2501.8,2501.7,3.2078]
[1729974025801,4.4749639,2501.8,2501.7,15.5078]
[1729974027511,1.00028,2502.5,2501.7,15.5078]
[1729974027512,0.4001,2502.5,2502.2,0.40014]
[1729974027812,0.4001,2502.5,2502.4,3.2078]
[1729974028009,4.4749639,2502.4,2502.1,3.2078]
[1729974028313,4.8750939,2502.3,2502.1,3.2078]
[1729974029105,0.4001,2502.5,2502.2,0.40013]
[1729974029313,4.4749639,2502.4,2502.2,0.40013]
[1729974029607,4.8750739,2502.4,2502.2,0.40013]
[1729974029808,6.86300572,2509.4,2502.3,6.81294884]
[1729974029809,0.99986,2503.5,2502.3,6.81294884]
[1729974030011,3.2078,2503.7,2502.7,6.02474884]
[1729974030012,4.4749639,2503.1,2502.7,6.02474884]
[1729974030205,1.0469,2503.4,2503.0,3.2078]
[1729974030206,4.4749639,2503.2,2503.0,3.2078]
[1729974030412,4.4749639,2503.2,2503.1,0.4]
[1729974030706,4.4749639,2503.2,2503.0,3.2078]
[1729974031106,4.8749639,2503.2,2503.1,12.3]
[1729974033920,3.2078,2504.1,2503.1,16.2952]
[1729974034215,4.4749639,2503.8,2503.7,3.2078]
[1729974034806,4.4749639,2503.8,2503.7,15.5078]
[1729974036713,3.2078,2504.6,2503.7,19.62726081]
[1729974037017,6.663,2506.4,2504.5,2.81694884]
[1729974037018,3.2078,2504.9,2504.5,2.81694884]
[1729974037311,4.4749639,2504.8,2504.5,2.81694884]
[1729974037516,4.8746939,2504.8,2504.5,2.81694884]
[1729974037720,0.39975,2504.7,2504.6,0.12502068]
[1729974037905,4.4749639,2504.8,2504.6,0.12502068]
[1729974037906,4.8746939,2504.8,2504.6,0.12502068]
[1729974038105,4.8746939,2504.8,2504.5,2.81694884]
[1729974038106,4.8746939,2504.8,2504.7,0.12502068]
[1729974038309,4.8746939,2504.8,2504.7,2.94196952]
[1729974038310,4.4749639,2504.8,2504.7,2.94196952]
[1729974038613,0.39969,2505.1,2504.7,6.80974884]
[1729974038821,2.81694884,2505.7,2504.9,3.2078]
[1729974039123,4.4749639,2505.7,2505.6,2.81694884]
[1729974039315,0.39958,2505.7,2505.6,0.12501548]
[1729974039505,0.39958,2505.7,2505.2,2.81694884]
[1729974039506,0.39965,2505.3,2505.2,2.81694884]
[1729974039813,4.4749639,2505.1,2505.0,15.11694884]
[1729974040017,0.39962,2505.5,2505.0,12.62500023]
[1729974040223,0.39962,2505.5,2505.4,2.81694884]
[1729974040514,3.2078,2505.8,2505.4,3.58032043]
[1729974040707,4.8745439,2505.8,2505.7,3.45531774]
[1729974041318,3.2078,2506.6,2505.7,7.77139513]
[1729974041520,0.3995,2506.3,2506.2,3.45531774]
[1729974041907,4.8744639,2506.3,2506.2,15.75531774]
[1729974042112,4.8744639,2506.3,2506.2,12.3]
[1729974044112,4.8744639,2506.3,2505.4,3.2078]
[1729974044113,0.9988,2506.2,2505.4,3.2078]
[1729974044318,0.9988,2506.2,2505.3,3.45531774]
[1729974044319,0.39959,2505.7,2505.3,3.45531774]
[1729974044508,3.2078,2506.0,2505.3,3.45531774]
[1729974044713,0.39958,2505.7,2505.3,3.45531774]
[1729974044919,4.4749639,2505.8,2505.3,3.45531774]
[1729974044920,0.39961,2505.6,2505.3,3.45531774]
[1729974045221,0.39961,2505.6,2505.3,14.75531774]
[1729974045421,0.39955,2505.9,2505.3,14.75531774]
[1729974045618,4.4749639,2505.7,2505.3,14.75531774]
[1729974045825,0.3996,2505.6,2505.3,14.75531774]
[1729974046122,0.39961,2505.6,2505.3,14.75531774]
[1729974046427,0.39963,2505.5,2505.3,14.75531774]
[1729974046613,7.6827639,2505.7,2505.3,14.75531774]
[1729974046814,3.2078,2506.3,2505.6,3.45531774]
[1729974047014,0.39952,2506.1,2506.0,3.45531774]
[1729974047216,0.00514074,2506.8,2506.0,7.57066306]
[1729974047411,4.4749639,2506.5,2506.1,4.34584532]
[1729974047618,4.8744239,2506.5,2506.4,3.45531774]
[1729974047921,0.39949,2506.3,2506.2,11.3]
[1729974048622,4.8744539,2506.3,2506.2,11.3]
[1729974049018,4.4749639,2506.3,2506.2,11.3]
[1729974049727,4.8744539,2506.3,2506.2,11.3]
[1729974050113,4.4749639,2506.3,2506.2,11.3]
[1729974050321,4.8744539,2506.3,2506.2,11.3]
[1729974050829,4.4749639,2506.3,2506.2,11.3]
[1729974051825,0.39947,2506.5,2506.2,11.3]
[1729974052021,4.4749639,2506.4,2506.2,11.3]
[1729974052225,0.39947,2506.5,2506.2,11.3]
[1729974052423,3.21294074,2506.8,2506.2,11.3]
[1729974052625,0.39946,2506.5,2506.2,11.3]
[1729974052924,4.4749639,2506.6,2506.4,3.45531774]
[1729974053127,4.8744039,2506.6,2506.4,3.45531774]
[1729974053333,4.4749639,2506.6,2506.4,3.45531774]
[1729974054015,3.21294074,2506.8,2506.5,3.9896]
[1729974054016,0.00514074,2506.8,2506.5,3.9896]
[1729974054220,1.0187,2507.4,2506.7,6.66311774]
[1729974054423,0.39933,2507.3,2506.8,0.3994]
[1729974054628,3.2078,2507.8,2506.8,0.3994]
[1729974054629,3.2078,2507.8,2507.2,3.45531774]
[1729974054819,0.39928,2507.6,2507.5,3.45531774]
[1729974055020,0.39928,2507.6,2507.5,14.75531774]
[1729974055021,4.8742439,2507.6,2507.5,14.75531774]
[1729974055221,0.39928,2507.6,2507.5,14.75531774]
[1729974055426,4.8742439,2507.6,2507.5,14.75531774]
[1729974055931,3.2078,2507.8,2507.5,14.75531774]
[1729974056121,0.39928,2507.6,2507.5,11.3]
[1729974056318,0.39948,2506.4,2505.9,0.39955]
[1729974056522,0.39946,2506.5,2506.4,3.45531774]
[1729974056726,0.39945,2506.6,2506.4,3.45531774]
[1729974056925,0.39946,2506.5,2506.4,3.45531774]
[1729974057128,0.39946,2506.5,2506.4,7.44491774]
[1729974057321,0.39946,2506.5,2506.4,13.65531774]
[1729974058933,4.20605,2507.6,2506.4,17.64491774]
[1729974059122,0.39936,2507.1,2506.7,3.2078]
[1729974059327,0.39936,2507.1,2507.0,3.45531774]
[1729974060425,0.39936,2507.1,2506.7,3.2078]
[1729974060426,0.39941,2506.8,2506.7,3.45531774]
[1729974060625,4.8743739,2506.8,2506.7,3.45531774]
[1729974062031,4.4749639,2506.8,2506.7,3.45531774]
[1729974062229,3.2078,2506.9,2506.7,7.44491774]
[1729974062432,3.2078,2506.9,2506.7,3.45531774]
[1729974062634,3.2078,2506.9,2506.7,3.85473774]
[1729974062933,3.2078,2506.9,2506.7,3.45531774]
[1729974063332,0.39928,2507.6,2507.3,0.39932]
[1729974063629,1.0741,2508.3,2507.5,3.2078]
[1729974063830,4.4749639,2507.8,2507.5,6.66311774]
[1729974064034,1.0741,2508.3,2507.5,6.66311774]
[1729974064035,0.39928,2507.6,2507.5,6.66311774]
[1729974064238,4.4749639,2507.7,2507.5,6.66311774]
[1729974064239,4.4749639,2507.7,2507.5,13.65531774]
[1729974064429,0.39928,2507.6,2507.5,13.65531774]
[1729974064630,0.39928,2507.6,2507.5,10.2]
[1729974064828,4.4749639,2507.6,2507.0,3.2078]
[1729974065123,5.70441774,2508.3,2507.0,3.2078]
[1729974065124,0.39936,2507.1,2507.0,3.2078]
[1729974065636,0.39944,2506.6,2506.5,3.2078]
[1729974065834,0.39944,2506.6,2506.5,12.6078]
[1729974067035,4.8744039,2506.6,2506.5,9.4]
[1729974068333,0.3995,2506.2,2505.6,3.45531774]
[1729974068534,0.99865,2506.5,2505.6,3.45531774]
[1729974068535,0.39957,2505.8,2505.7,0.12495478]
[1729974068733,0.39957,2505.8,2505.6,3.45531774]
[1729974068933,1.0981,2506.3,2505.6,3.45531774]
[1729974069129,0.39958,2505.7,2505.6,3.45531774]
[1729974069333,0.39958,2505.7,2505.6,11.28028384]
[1729974069535,4.3059,2506.3,2505.6,11.28028271]
[1729974069838,0.39958,2505.7,2505.6,11.15531774]
[1729974070834,4.8745439,2505.7,2505.6,7.7]
[1729974071341,4.8745439,2505.7,2505.1,6.66311774]
[1729974071342,4.4749639,2505.7,2505.1,3.45531774]
[1729974071533,4.8746239,2505.2,2505.1,3.45531774]
[1729974071736,0.39971,2504.9,2504.8,3.2078]
[1729974071941,4.8746739,2504.9,2504.8,3.2078]
[1729974072441,4.8746739,2504.9,2504.8,10.1078]
[1729974072740,0.39982,2504.3,2504.1,3.45531774]
[1729974073036,4.8747739,2504.3,2504.2,0.12504003]
[1729974073549,4.8747739,2504.3,2504.2,5.02504003]
[1729974073733,0.39978,2504.5,2504.2,9.01864003]
[1729974073935,0.14707136,2537.5,2504.4,0.39979]
[1729974073936,0.39973,2504.9,2504.4,0.39979]
[1729974074244,0.39973,2504.9,2504.5,0.12504003]
[1729974074245,4.4749639,2504.8,2504.5,0.12504003]
[1729974074436,4.4749639,2504.8,2504.6,0.12504003]
[1729974074639,4.4749639,2504.8,2504.2,4.9]
[1729974074640,3.2078,2504.7,2504.2,4.9]
[1729974074840,4.4749639,2504.5,2504.2,4.9]
[1729974075134,0.39981,2504.3,2504.2,4.9]
[1729974075345,4.4749639,2504.5,2504.2,4.9]
[1729974075546,0.39981,2504.3,2504.2,4.9]
[1729974076348,0.39981,2504.3,2504.2,5.10006192]
[1729974076745,0.39981,2504.3,2504.2,4.9]
[1729974078243,0.39981,2504.3,2504.2,5.10006791]
[1729974078548,0.39981,2504.3,2504.2,4.9]
[1729974079138,3.2078,2504.7,2504.2,4.9]
[1729974079343,4.4749639,2504.4,2504.0,3.2078]
[1729974079645,0.39982,2504.3,2504.1,0.20006125]
[1729974079941,0.39982,2504.3,2504.0,3.2078]
[1729974080251,0.39982,2504.3,2504.2,4.9]
[1729974081336,4.8747839,2504.3,2504.2,4.9]
[1729974083445,3.2078,2505.1,2504.2,12.78218463]
[1729974083750,2.2351,2505.7,2504.8,3.2078]
[1729974083957,4.4749639,2505.3,2504.9,2.41063992]
[1729974084149,0.39966,2505.2,2505.0,0.20003992]
[1729974084449,2.2351,2505.7,2504.9,2.2106]
[1729974084753,2.2351,2505.7,2505.1,3.2078]
[1729974084754,0.39966,2505.2,2505.1,3.2078]
[1729974085048,4.4749639,2505.5,2505.1,3.2078]
[1729974085049,0.39966,2505.3,2505.1,3.40778039]
[1729974085344,4.4749639,2505.5,2505.2,4.9]
[1729974085547,0.39965,2505.3,2505.2,4.9]
[1729974085946,4.8746139,2505.3,2505.2,4.9]
[1729974086745,3.2078,2505.4,2503.8,0.04804919]
[1729974086746,0.39982,2504.2,2504.0,3.88858463]
[1729974087057,4.4749639,2504.3,2504.0,3.88858463]
[1729974087444,0.99944,2504.6,2503.9,1.0902]
[1729974087445,4.4749639,2504.1,2503.9,1.0902]
[1729974087642,4.4749639,2504.1,2503.6,4.95398463]
[1729974087643,0.3999,2503.7,2503.6,1.0654]
[1729974087855,4.4749639,2504.0,2503.6,1.0654]
[1729974087856,4.4749639,2503.9,2503.7,0.3999]
[1729974088150,4.4749639,2503.9,2503.8,4.49989]
[1729974088451,4.4749639,2503.9,2503.8,4.1]
[1729974089148,4.8748339,2503.9,2503.8,4.1]
[1729974089342,4.4749639,2503.9,2503.8,4.1]
[1729974089947,4.8748339,2503.9,2503.8,4.1]
[1729974094554,4.4749639,2503.9,2503.8,4.1]
[1729974097756,3.2078,2504.1,2503.8,7.55815581]
[1729974097953,4.4749639,2504.0,2503.8,3.45815581]
[1729974098153,4.4749639,2504.0,2503.8,3.85803581]
[1729974098364,1.137,2504.5,2503.8,3.85803581]
[1729974098365,3.2078,2504.5,2503.9,7.3078]
[1729974098652,4.4749639,2504.4,2504.3,3.85796581]
[1729974099159,2.18,2504.7,2504.3,3.45815581]
[1729974099455,3.2078,2505.1,2504.5,3.85791581]
[1729974099456,4.4749639,2504.6,2504.5,3.85791581]
[1729974099657,4.4749639,2504.6,2504.5,3.45815581]
[1729974099957,0.39972,2504.9,2504.6,0.39975]
[1729974100158,3.2078,2505.4,2504.8,6.66595581]
[1729974100354,1.1443,2505.6,2504.8,6.66595581]
[1729974100355,4.4749639,2505.1,2504.8,6.66595581]
[1729974100551,4.4749639,2505.1,2505.0,0.3997]
[1729974101246,0.39964,2505.4,2505.2,0.39966]
[1729974101467,4.4749639,2505.4,2505.3,3.85780581]
[1729974102057,4.4749639,2505.4,2505.3,7.95780581]
[1729974102259,0.39959,2505.7,2505.4,0.39962]
[1729974102457,4.4749639,2505.6,2505.5,0.3996]
[1729974102658,4.4749639,2505.6,2505.5,3.45815581]
[1729974102659,4.8745639,2505.6,2505.5,3.45815581]
[1729974102958,4.4749639,2505.6,2505.5,3.45815581]
[1729974103853,4.8745639,2505.6,2505.5,3.45815581]
[1729974104050,3.2078,2506.0,2505.5,3.45815581]
[1729974104260,3.2078,2506.0,2505.4,0.39962]
[1729974104261,4.4749639,2505.6,2505.4,0.39962]
[1729974104453,4.8745739,2505.6,2505.4,3.45815581]
[1729974104762,4.57405581,2506.7,2505.3,4.1]
[1729974104763,0.39963,2505.4,2505.3,4.1]
[1729974105059,4.8745939,2505.4,2505.3,4.1]
[1729974107861,4.4749639,2505.4,2505.3,4.1]
[1729974108064,4.8745939,2505.4,2505.3,4.1]
[1729974109757,4.4749639,2505.4,2504.9,3.45815581]
[1729974109958,3.2078,2505.5,2504.9,3.45815581]
[1729974109959,4.4749639,2505.0,2504.9,3.45815581]
[1729974110757,4.8746639,2505.0,2504.9,2.4]
[1729974111151,8.0824639,2505.0,2504.9,2.4]
[1729974112859,4.4749639,2505.0,2504.9,2.4]
[1729974113657,3.2078,2505.4,2505.0,0.39968]
[1729974113658,3.60743,2505.4,2505.0,0.39968]
[1729974113967,1.136,2505.6,2505.1,0.39968]
[1729974113968,4.4749639,2505.2,2505.1,0.39968]
[1729974114566,3.2078,2505.7,2504.9,9.06595581]
[1729974114863,4.4749639,2505.5,2505.4,3.45815581]
[1729974115063,4.4749639,2505.5,2505.4,3.85778581]
[1729974117162,4.4749639,2505.5,2504.9,2.4]
[1729974117365,4.8746539,2505.1,2504.9,2.79971]
[1729974117558,4.8746539,2505.1,2505.0,0.12500335]
[1729974117760,0.3997,2505.0,2504.9,2.4]
[1729974117956,0.3997,2505.0,2504.9,2.52500785]
[1729974118374,0.3997,2505.0,2504.9,2.4]
[1729974119268,4.8746639,2505.0,2504.9,2.4]
[1729974120769,0.3998,2504.4,2503.9,5.58205581]
[1729974120965,4.4749639,2504.0,2503.9,5.98192581]
[1729974121269,4.4749639,2504.0,2503.9,9.31476883]
[1729974122067,0.99934,2504.8,2503.9,9.31476883]
[1729974122068,6.4936,2505.1,2504.0,0.99965]
[1729974122265,4.4749639,2504.7,2504.5,3.2078]
[1729974122659,4.4749639,2504.7,2504.6,0.39976]
[1729974123568,1.0755,2505.1,2504.6,3.45815581]
[1729974123763,4.4749639,2504.9,2504.8,3.60753]
[1729974124069,4.4749639,2504.9,2504.8,3.2078]
[1729974124468,4.4749639,2504.9,2504.8,3.60753]
[1729974124671,4.4749639,2504.9,2504.8,3.2078]
[1729974124863,4.4749639,2504.9,2504.8,3.60753]
[1729974125274,1.0884,2505.3,2504.8,3.2078]
[1729974125463,4.4749639,2505.0,2504.9,0.39971]
[1729974125767,4.4749639,2505.0,2504.8,3.2078]
[1729974125957,4.4749639,2505.0,2504.8,3.60752]
[1729974125958,4.8746739,2505.0,2504.8,3.60752]
[1729974126164,4.8746739,2505.0,2504.9,0.39971]
[1729974126559,3.2078,2505.4,2504.9,3.45815581]
[1729974126762,0.39959,2505.7,2505.2,3.2078]
[1729974126966,4.4749639,2505.6,2505.2,3.2078]
[1729974127171,4.4749639,2505.6,2505.5,3.85777581]
[1729974127669,4.4749639,2505.6,2505.5,7.06557581]
[1729974130869,4.4749639,2505.6,2505.3,4.3657]
[1729974131170,4.4749639,2505.4,2505.3,4.3657]
[1729974131375,4.4749639,2505.4,2505.3,4.76533]
[1729974131676,4.4749639,2505.4,2504.7,4.54445581]
[1729974131870,4.4749639,2505.0,2504.9,0.39971]
[1729974132164,4.4749639,2505.0,2504.9,3.60751]
[1729974132562,4.4749639,2505.0,2504.8,0.39972]
[1729974132757,1.1237,2505.3,2504.7,1.48604]
[1729974132758,4.4749639,2504.8,2504.7,1.48604]
[1729974133764,4.4749639,2504.8,2504.7,4.69384]
[1729974134358,4.4749639,2504.8,2504.7,8.15199581]
[1729974135186,4.4749639,2504.8,2504.7,3.2078]
[1729974135187,4.8746939,2504.8,2504.7,3.2078]
[1729974135969,0.3998,2504.4,2504.2,3.85797581]
[1729974136171,4.4749639,2504.3,2504.2,0.39982]
[1729974137078,4.8747739,2504.3,2504.1,3.2078]
[1729974137274,4.4749639,2504.2,2504.1,3.60764]
[1729974137774,4.4749639,2504.2,2504.1,3.2078]
[1729974137972,4.4749639,2504.2,2504.1,3.60764]
[1729974138777,4.4749639,2504.2,2503.9,3.45815581]
[1729974138985,4.4749639,2504.0,2503.9,3.85802581]
[1729974139176,4.4749639,2504.0,2503.9,7.06582581]
[1729974141072,4.4749639,2504.0,2503.9,7.19086336]
[1729974144571,2.2095,2504.7,2504.3,0.3998]
[1729974144767,0.39979,2504.5,2504.3,3.6076]
[1729974144973,4.8747539,2504.4,2504.3,3.6076]
[1729974145279,4.8747539,2504.4,2504.3,3.2078]
[1729974145469,4.4749639,2504.4,2504.3,3.60761]
[1729974145665,4.8747539,2504.4,2504.3,3.2078]
[1729974145981,4.4749639,2504.4,2504.3,3.60761]
[1729974146277,1.47674,2504.7,2504.6,0.39976]
[1729974146468,4.3016,2505.1,2504.4,3.45815581]
[1729974146469,4.4749639,2504.6,2504.4,3.45815581]
[1729974146676,4.4749639,2504.7,2504.6,0.39976]
[1729974146871,4.4749639,2504.8,2504.6,3.2078]
[1729974147076,4.4749639,2504.8,2504.7,0.39974]
[1729974152279,4.4749639,2504.8,2504.7,0.52473844]
[1729974153183,4.4749639,2504.8,2504.7,0.12499844]
[1729974153381,4.4749639,2504.8,2504.7,0.52473844]
[1729974155783,4.4749639,2504.8,2504.7,0.39974]
[1729974156184,4.4749639,2504.8,2504.7,0.52473799]
[1729974156979,4.4749639,2504.8,2504.7,3.73253799]
[1729974157380,2.63458,2505.2,2505.0,0.39968]
[1729974157789,4.4749639,2505.1,2505.0,0.39968]
[1729974158089,4.8746439,2505.1,2505.0,0.39968]
[1729974158384,4.4749639,2505.1,2505.0,0.39968]
[1729974158775,0.3997,2505.0,2504.9,0.3997]
[1729974158981,4.4749639,2504.9,2504.8,0.39973]
[1729974160480,2.63458,2505.2,2505.1,0.39968]
[1729974160481,2.2349,2505.2,2505.1,0.39968]
[1729974160678,6.7098639,2505.2,2505.1,0.39968]
[1729974161295,3.2078,2505.9,2505.0,6.66595581]
[1729974161491,4.8745839,2505.5,2505.4,3.60743]
[1729974161786,4.4749639,2505.5,2505.4,3.60743]
[1729974162776,1.2066,2505.8,2505.7,0.39958]
[1729974162984,1.2066,2505.8,2505.7,3.60738]
[1729974163183,5.6815639,2505.8,2505.7,3.60738]
[1729974164787,6.0811339,2505.8,2505.7,3.60738]
[1729974164987,5.6815639,2505.8,2505.7,3.60738]
[1729974165286,3.2078,2506.3,2505.7,3.2078]
[1729974165482,4.4749639,2506.0,2505.9,0.39955]
[1729974166890,4.4749639,2506.0,2505.7,6.01500109]
[1729974166891,4.4749639,2506.0,2505.7,3.2078]
[1729974167186,3.2078,2506.3,2505.7,3.2078]
[1729974167187,4.8745339,2505.8,2505.7,3.2078]
[1729974167383,4.4749639,2505.8,2505.7,3.60738]
[1729974167583,4.8745339,2505.8,2505.7,3.2078]
[1729974167789,6.0010339,2505.8,2505.7,3.2078]
[1729974168187,0.39959,2505.7,2505.6,0.39959]
[1729974168382,0.39959,2505.7,2505.6,3.60739]
[1729974168583,4.8745539,2505.7,2505.6,3.2078]
[1729974169383,5.9938539,2505.7,2505.6,3.2078]
[1729974169581,5.5942639,2505.7,2505.3,0.39964]
[1729974169781,4.4749639,2505.3,2505.2,3.2078]
[1729974169989,4.8746139,2505.3,2505.2,3.60746]
[1729974170292,4.4749639,2505.3,2505.2,3.60746]
[1729974173484,4.4749639,2505.3,2505.2,6.41466109]
[1729974174688,1.1193,2505.7,2505.2,6.53962674]
[1729974174994,4.4749639,2505.4,2505.3,3.20685109]
[1729974175192,4.4749639,2505.4,2505.3,6.41465109]
[1729974175991,1.1265,2505.8,2505.3,6.01500109]
[1729974176194,1.1265,2505.8,2505.7,0.39958]
[1729974176392,5.6014639,2505.8,2505.7,0.39958]
[1729974178597,4.4749639,2505.8,2505.7,0.39958]
[1729974180100,4.8745339,2505.8,2505.7,0.39958]
[1729974180295,4.4749639,2505.8,2505.4,5.16880109]
[1729974180496,4.4749639,2505.7,2505.4,5.16880109]
[1729974180702,4.8745439,2505.7,2505.6,0.3996]
[1729974180901,4.4749639,2505.7,2505.6,0.3996]
[1729974181102,4.8745439,2505.7,2505.6,0.3996]
[1729974181294,4.4749639,2505.7,2505.2,3.2078]
[1729974181491,3.2078,2506.0,2505.2,3.2078]
[1729974181492,4.4749639,2505.3,2505.2,3.2078]
[1729974181687,4.4749639,2505.3,2505.2,3.60746]
[1729974182402,1.1267,2505.6,2505.5,0.39962]
[1729974182699,4.4749639,2505.5,2505.4,0.39963]
[1729974182894,4.4749639,2505.5,2505.4,6.41463109]
[1729974183099,0.39957,2505.8,2505.4,6.01500109]
[1729974183297,4.4749639,2505.6,2505.5,0.39962]
[1729974183596,1.1267,2506.1,2505.7,0.39958]
[1729974183597,4.4749639,2505.8,2505.7,0.39958]
[1729974183903,4.4749639,2505.8,2505.7,6.41458109]
[1729974188604,1.1267,2506.1,2505.7,6.01500109]
[1729974188801,1.1267,2506.1,2506.0,3.60734]
[1729974189009,1.52622,2506.1,2506.0,3.60734]
[1729974189205,6.0011839,2506.1,2506.0,3.60734]
[1729974190203,6.0011839,2506.1,2506.0,0.39954]
[1729974190408,5.6016639,2506.1,2506.0,0.39954]
[1729974191714,6.0011839,2506.1,2506.0,0.39954]
[1729974192314,5.6016639,2506.1,2506.0,0.39954]
[1729974192518,6.0011839,2506.1,2506.0,0.39954]
[1729974192917,5.6016639,2506.1,2506.0,0.39954]
[1729974193315,0.99852,2506.9,2506.0,6.01500109]
[1729974193522,0.39946,2506.5,2506.4,0.39946]
[1729974193819,0.39947,2506.5,2506.4,0.39947]
[1729974194118,0.3995,2506.3,2506.2,0.3995]
[1729974194319,5.41718,2506.7,2506.1,2.80720109]
[1729974194620,5.41718,2506.7,2506.1,0.39952]
[1729974194621,1.89495342,2506.2,2506.1,0.39952]
[1729974194921,1.49544342,2506.2,2506.1,0.39952]
[1729974195218,1.89494342,2506.2,2506.1,0.39952]
[1729974195812,1.49544342,2506.2,2506.1,0.39952]
[1729974196523,1.49544342,2506.2,2506.1,3.20672109]
[1729974197615,1.89494342,2506.2,2506.1,3.20672109]
[1729974197915,1.49544342,2506.2,2506.1,3.20672109]
[1729974198523,1.89494342,2506.2,2506.1,3.20672109]
[1729974198819,0.39953,2506.1,2505.9,0.39955]
[1729974199018,1.49544342,2506.0,2505.6,2.80720109]
[1729974199219,2.332,2506.1,2505.7,0.39958]
[1729974199426,1.89501342,2505.8,2505.7,0.39958]
[1729974199722,1.89502342,2505.8,2505.6,3.20679109]
[1729974199918,1.49544342,2505.7,2505.6,3.20679109]
[1729974200518,1.49544342,2505.7,2505.6,2.80720109]
[1729974200519,1.89502342,2505.7,2505.6,2.80720109]
[1729974201722,0.39962,2505.5,2505.4,2.80720109]
[1729974202019,1.49544342,2505.5,2505.4,6.41463109]
[1729974202223,1.89506342,2505.5,2505.4,6.01500109]
[1729974202621,1.89506342,2505.5,2505.4,3.20683109]
[1729974202820,1.89506342,2505.5,2505.4,2.80720109]
[1729974203123,0.39965,2505.3,2505.2,0.39965]
[1729974203324,1.49544342,2505.3,2505.1,7.14110109]
[1729974203526,1.49544342,2505.2,2505.1,6.01500109]
[1729974203825,1.89510342,2505.2,2505.1,6.01500109]
[1729974204223,1.49544342,2505.2,2505.1,6.41468109]
[1729974207224,1.49544342,2505.2,2505.1,6.53966798]
[1729974207428,1.49544342,2505.2,2505.1,6.73964597]
[1729974207622,1.49544342,2505.2,2505.1,6.53966758]
[1729974207925,1.49544342,2505.2,2505.1,6.33996559]
[1729974208125,1.89510342,2505.2,2505.1,0.12498649]
[1729974208524,0.39971,2504.9,2504.8,3.2078]
[1729974208724,0.39971,2504.9,2504.8,3.33280161]
[1729974208725,1.89515342,2504.9,2504.8,3.33280161]
[1729974209627,1.89515342,2504.9,2504.8,3.73253161]
[1729974210035,1.49544342,2504.9,2504.8,3.73253161]
[1729974211729,1.49544342,2504.9,2504.8,3.93252083]
[1729974211927,1.2009,2505.4,2504.8,7.52479083]
[1729974212133,1.2009,2505.4,2505.1,0.39966]
[1729974212434,0.39966,2505.3,2505.2,0.39966]
[1729974212635,1.49544342,2505.1,2505.0,3.20690109]
[1729974212839,1.49544342,2505.1,2505.0,3.33189117]
[1729974213338,0.47302506,2505.1,2505.0,3.33189117]
[1729974214345,0.39951,2506.2,2506.0,0.39954]
[1729974214525,0.47302506,2506.0,2505.9,0.39955]
[1729974214837,2.4903,2506.5,2506.1,0.39952]
[1729974214838,0.47302506,2506.2,2506.1,0.39952]
[1729974215038,0.47302506,2506.2,2506.1,0.52447094]
[1729974216233,0.47302506,2506.2,2505.9,4.07700109]
[1729974216437,0.39951,2506.2,2506.0,0.39953]
[1729974216938,0.47302506,2506.1,2506.0,0.39953]
[1729974218333,9.3377749,2507.8,2506.0,12.57491651]
[1729974218536,1.2065,2507.4,2507.1,2.80720109]
[1729974218726,1.2065,2507.4,2507.1,3.20656109]
[1729974218929,1.2065,2507.4,2506.9,2.80720109]
[1729974219132,3.2078,2507.2,2506.9,2.80720109]
[1729974219431,3.2078,2507.2,2506.9,6.41439109]
[1729974219432,0.39935,2507.2,2506.9,6.41439109]
[1729974219629,0.39934,2507.3,2506.9,6.41439109]
[1729974220039,1.2065,2507.4,2506.9,6.01500109]
[1729974220336,4.4143,2507.4,2506.9,2.80720109]
[1729974220835,0.39937,2507.1,2506.9,2.80720109]
[1729974223438,4.4143,2507.4,2506.9,2.80720109]
[1729974223439,0.39938,2507.0,2506.9,2.80720109]
[1729974223835,4.4143,2507.4,2506.9,2.80720109]
[1729974224036,0.39937,2507.1,2506.9,2.80720109]
[1729974224233,0.39942,2506.7,2506.6,3.2078]
[1729974224544,0.3995,2506.3,2506.1,2.80720109]
[1729974224741,0.3995,2506.2,2506.1,2.80720109]
[1729974225633,4.3899,2506.2,2506.1,2.80720109]
[1729974225858,4.3899,2506.2,2505.8,4.01050109]
[1729974225859,0.39954,2506.0,2505.8,4.01050109]
[1729974226542,0.39953,2506.1,2505.8,4.41006109]
[1729974226938,0.39953,2506.1,2505.8,7.21830109]
[1729974227138,0.39953,2506.1,2505.8,7.61786109]
[1729974227340,0.39954,2506.0,2505.8,4.41006109]
[1729974227538,0.39954,2506.0,2505.8,4.01050109]
[1729974227746,0.39955,2505.9,2505.8,4.01050109]
[1729974227943,0.39955,2505.9,2505.8,2.80720109]
[1729974228340,0.39958,2505.7,2505.6,2.80720109]
[1729974230445,2.5842,2506.0,2505.4,4.10780109]
[1729974230446,0.39962,2505.5,2505.4,4.10780109]
[1729974230746,0.39958,2505.8,2505.5,0.39961]
[1729974230952,0.39958,2505.8,2505.7,2.80720109]
[1729974231842,2.5842,2506.0,2505.7,3.20677109]
[1729974231843,0.39955,2505.9,2505.7,3.20677109]
[1729974232761,1.3021,2506.0,2505.7,2.80720109]
[1729974233148,0.39957,2505.9,2505.7,2.80720109]
[1729974233454,0.39957,2505.8,2505.7,2.80720109]
[1729974235056,0.39957,2505.8,2505.5,3.60741]
[1729974235057,1.3021,2506.0,2505.4,1.3006]
[1729974235273,0.39962,2505.5,2505.4,4.10780109]
[1729974235446,0.39962,2505.5,2505.4,1.3006]
[1729974235643,0.39962,2505.5,2505.4,5.2918]
[1729974235852,0.39962,2505.5,2505.4,8.09900109]
[1729974236556,0.39962,2505.5,2505.4,8.49863109]